fUSD/lending_fUSD_20250514
["ID","MTS","AMOUNT","RATE_DAILY","PERIOD"]
[361002013,1747192246427,-174.131,0.00010973,2]
[361002014,1747192246436,-400.0,0.00010994,2]
[361002015,1747192246446,-500.0,0.00010994,2]
[361002016,1747192246630,-400.0,0.00010994,2]
[361002017,1747192246641,-498.37,0.00010994,2]
[361002018,1747192246650,-1512.14,0.00010994,2]
[361002019,1747192246659,-400.0,0.00010994,2]
[361002020,1747192246668,-400.0,0.00010994,2]
[361002021,1747192246677,-400.0,0.00010994,2]
[361002022,1747192246687,-1449.87,0.00010994,2]
[361002023,1747192246696,-497.56,0.00010994,2]
[361002024,1747192246706,-400.0,0.00010994,2]
[361002025,1747192246716,-547.27,0.00010994,2]
[361002026,1747192246727,-631.13,0.00010994,2]
[361002027,1747192246737,-400.0,0.00010994,2]
[361002028,1747192246747,-500.0,0.00010994,2]
[361002029,1747192246756,-3482.07196461,0.00010994,2]
[361002030,1747192246765,-8930.6374774,0.00010995,2]
[361002031,1747192246774,-1773.5954513,0.00010995,2]
[361002032,1747192246783,-12890.31442514,0.00010995,2]
[361002033,1747192246797,-4601.15,0.00010995,2]
[361002034,1747192246808,-20224.15253625,0.00010995,2]
[361002035,1747192247008,-453.8784,0.00010995,2]
[361002036,1747192247051,-361.405,0.00010995,2]
[361002037,1747192247526,-400.0,0.00010958,2]
[361002038,1747192247536,-162.6023957,0.00010995,2]
[361002039,1747192247547,-942.316296,0.00010995,2]
[361002040,1747192247574,-28070.08238371,0.00010995,2]
[361002041,1747192247583,-1338.79610839,0.00010995,2]
[361002042,1747192248385,-1147.0,0.00010905,2]
[361002043,1747192248395,-400.0,0.00010958,2]
[361002044,1747192248404,-400.0,0.00010958,2]
[361002045,1747192248415,-107.15169331,0.00010995,2]
[361002046,1747192248425,-1000.0,0.00010999,2]
[361002047,1747192248435,-500.0,0.00010999,2]
[361002048,1747192248444,-500.0,0.00010999,2]
[361002049,1747192248454,-500.0,0.00010999,2]
[361002050,1747192248463,-500.0,0.00010999,2]
[361002051,1747192248473,-500.0,0.00010999,2]
[361002052,1747192248482,-500.0,0.00010999,2]
[361002053,1747192248492,-500.0,0.00010999,2]
[361002054,1747192248502,-500.0,0.00010999,2]
[361002055,1747192248512,-500.0,0.00010999,2]
[361002056,1747192248522,-500.0,0.00010999,2]
[361002057,1747192248532,-500.0,0.00010999,2]
[361002058,1747192248543,-500.0,0.00010999,2]
[361002059,1747192248553,-357.41767067,0.00010999,2]
[361002060,1747192248563,-500.0,0.00010999,2]
[361002061,1747192248572,-500.0,0.00010999,2]
[361002062,1747192248582,-500.0,0.00010999,2]
[361002063,1747192248592,-500.0,0.00010999,2]
[361002064,1747192248602,-500.0,0.00010999,2]
[361002065,1747192248612,-500.0,0.00010999,2]
[361002066,1747192248622,-500.0,0.00010999,2]
[361002067,1747192248632,-500.0,0.00010999,2]
[361002068,1747192248641,-500.0,0.00010999,2]
[361002069,1747192248651,-500.0,0.00010999,2]
[361002070,1747192248661,-390.21976913,0.00010999,2]
[361002071,1747192248670,-500.0,0.00010999,2]
[361002072,1747192248680,-500.0,0.00010999,2]
[361002073,1747192248689,-500.0,0.00010999,2]
[361002074,1747192248699,-500.0,0.00010999,2]
[361002075,1747192248708,-500.0,0.00010999,2]
[361002076,1747192248718,-500.0,0.00010999,2]
[361002077,1747192248728,-500.0,0.00010999,2]
[361002078,1747192248737,-500.0,0.00010999,2]
[361002079,1747192248747,-500.0,0.00010999,2]
[361002080,1747192248757,-500.0,0.00010999,2]
[361002081,1747192248767,-500.0,0.00010999,2]
[361002082,1747192248777,-500.0,0.00010999,2]
[361002083,1747192248787,-500.0,0.00010999,2]
[361002084,1747192248796,-445.72009074,0.00010999,2]
[361002085,1747192248816,-500.0,0.00010999,2]
[361002086,1747192248827,-500.0,0.00010999,2]
[361002087,1747192248837,-500.0,0.00010999,2]
[361002088,1747192248847,-500.0,0.00010999,2]
[361002089,1747192248857,-500.0,0.00010999,2]
[361002090,1747192248867,-500.0,0.00010999,2]
[361002091,1747192248877,-504.97025828,0.00010999,2]
[361002092,1747192248888,-308.54629882,0.00010999,2]
[361002093,1747192248898,-300.0,0.00010999,2]
[361002094,1747192248907,-449.49421905,0.00010999,2]
[361002095,1747192248929,-230.50578095,0.00010999,2]
[361002096,1747192248939,-256.62845276,0.00011,2]
[361002097,1747192248949,-12846.42506063,0.00011,2]
[361002098,1747192259296,150.0,0.00010296,7]
[361002101,1747192432427,247.0,0.00025,120]
[361002144,1747192715423,349.85399283,0.00025,60]
[361002165,1747193115441,876.54,8.219e-05,2]
[361002183,1747193222457,521.34,9.898e-05,2]
[361002213,1747193431954,-250.0,9.926e-05,2]
[361002214,1747193431964,-200.0,9.938e-05,2]
[361002215,1747193431973,-106.17,9.951e-05,2]
[361002218,1747193432014,-63.14343352,9.951e-05,2]
[361002219,1747193432023,-200.0,9.972e-05,2]
[361002220,1747193432032,-14.69830258,9.99e-05,2]
[361002232,1747193437523,-185.30169742,9.99e-05,2]
[361002233,1747193437533,-679.76131837,0.0001,2]
[361002234,1747193437544,-1041.23873475,0.0001,2]
[361002235,1747193437588,-1153.45963817,0.0001,2]
[361002236,1747193437795,-500.93768741,0.0001,2]
[361002242,1747193439707,-537.79,0.0001,2]
[361002243,1747193439762,-919.39818052,0.0001,2]
[361002244,1747193439773,-913.76378646,0.0001,2]
[361002245,1747193439786,-764.745945,0.0001,2]
[361002246,1747193439817,-340.52671136,0.0001,2]
[361002247,1747193439826,-1200.0,0.00010086,2]
[361002248,1747193439836,-219.39,0.00010087,2]
[361002249,1747193439845,-300.0,0.00010099,2]
[361002250,1747193439855,-1000.0,0.000101,2]
[361002251,1747193439864,-168.13,0.00010277,2]
[361002252,1747193439874,-876.54,0.00010472,2]
[361002253,1747193439883,-207.4,0.00010545,2]
[361002254,1747193439892,-1436.46288993,0.00010551,2]
[361002259,1747193442797,-3434.70367322,0.00010551,2]
[361002260,1747193442806,-173.6031144,0.00010897,2]
[361002261,1747193442816,-169.84863793,0.00010898,2]
[361002262,1747193442825,-903.73,0.00010898,2]
[361002263,1747193442834,-165.84,0.00010899,2]
[361002264,1747193442844,-2716.63,0.00010899,2]
[361002265,1747193442853,-299.99,0.00010899,2]
[361002266,1747193442863,-150.99,0.00010899,2]
[361002267,1747193442873,-250.37796303,0.00010899,2]
[361002268,1747193442882,-200.0,0.00010918,2]
[361002269,1747193442891,-150.0,0.00010943,2]
[361002270,1747193442901,-200.3685236,0.00010944,2]
[361002271,1747193442910,-1942.51,0.00010944,2]
[361002272,1747193442920,-9999.99,0.00010944,2]
[361002273,1747193442930,-2851.69,0.00010944,2]
[361002274,1747193442940,-164.27,0.00010948,2]
[361002275,1747193442949,-151.0,0.00010951,2]
[361002276,1747193442960,-287.61899177,0.00010951,2]
[361002277,1747193442969,-400.0,0.00010958,2]
[361002278,1747193442978,-400.0,0.00010958,2]
[361002280,1747193442990,-400.0,0.00010958,2]
[361002281,1747193443000,-400.0,0.00010958,2]
[361002282,1747193443010,-400.0,0.00010958,2]
[361002283,1747193443019,-631.03,0.00010958,2]
[361002284,1747193443029,-479.73722947,0.00010958,2]
[361002285,1747193443038,-400.0,0.00010958,2]
[361002286,1747193443048,-400.0,0.00010958,2]
[361002287,1747193443057,-403.92591493,0.00010958,2]
[361002288,1747193443067,-400.0,0.00010958,2]
[361002289,1747193443076,-400.0,0.00010958,2]
[361002290,1747193443085,-408.07,0.00010958,2]
[361002291,1747193443095,-400.0,0.00010958,2]
[361002292,1747193443105,-400.0,0.00010958,2]
[361002293,1747193443114,-400.0,0.00010958,2]
[361002294,1747193443124,-400.0,0.00010958,2]
[361002295,1747193443133,-456.43474139,0.00010958,2]
[361002296,1747193443143,-261.01114749,0.00010958,2]
[361002297,1747193443153,-400.0,0.00010958,2]
[361002298,1747193443163,-461.68,0.00010958,2]
[361002299,1747193443172,-765.55,0.00010958,2]
[361002300,1747193443182,-778.68,0.00010958,2]
[361002301,1747193443191,-400.0,0.00010958,2]
[361002302,1747193443201,-489.9,0.00010958,2]
[361002303,1747193443210,-400.0,0.00010958,2]
[361002304,1747193443220,-502.44,0.00010958,2]
[361002305,1747193443229,-400.0,0.00010958,2]
[361002306,1747193443239,-400.0,0.00010958,2]
[361002307,1747193443250,-1280.31,0.00010958,2]
[361002308,1747193443260,-400.0,0.00010958,2]
[361002309,1747193443269,-400.0,0.00010958,2]
[361002310,1747193443279,-373.75113542,0.00010958,2]
[361002311,1747193443289,-702.6,0.00010958,2]
[361002312,1747193443298,-717.9,0.00010958,2]
[361002313,1747193443307,-793.23,0.00010958,2]
[361002314,1747193443316,-400.0,0.00010958,2]
[361002315,1747193443326,-446.7,0.00010958,2]
[361002316,1747193443335,-473.35,0.00010958,2]
[361002317,1747193443345,-452.81,0.00010958,2]
[361002318,1747193443355,-154.52152192,0.00010958,2]
[361002319,1747193443365,-1029.45,0.00010958,2]
[361002320,1747193443374,-1580.7,0.00010958,2]
[361002321,1747193443384,-994.69,0.00010958,2]
[361002322,1747193443393,-400.0,0.00010958,2]
[361002323,1747193443403,-400.0,0.00010958,2]
[361002324,1747193443413,-766.13,0.00010958,2]
[361002325,1747193443423,-400.0,0.00010958,2]
[361002326,1747193443433,-947.52,0.00010958,2]
[361002327,1747193443443,-400.0,0.00010958,2]
[361002328,1747193443453,-400.0,0.00010958,2]
[361002329,1747193443462,-799.91,0.00010958,2]
[361002330,1747193443473,-400.0,0.00010958,2]
[361002331,1747193443483,-400.0,0.00010958,2]
[361002332,1747193443493,-400.0,0.00010958,2]
[361002333,1747193443502,-400.0,0.00010958,2]
[361002334,1747193443512,-480.43,0.00010958,2]
[361002335,1747193443522,-400.0,0.00010958,2]
[361002336,1747193443531,-400.0,0.00010958,2]
[361002337,1747193443541,-441.1,0.00010958,2]
[361002338,1747193443551,-661.37,0.00010958,2]
[361002339,1747193443561,-400.0,0.00010958,2]
[361002340,1747193443571,-1010.28,0.00010958,2]
[361002341,1747193443580,-400.0,0.00010958,2]
[361002342,1747193443591,-400.0,0.00010958,2]
[361002343,1747193443600,-814.732038,0.00010958,2]
[361002344,1747193443609,-400.0,0.00010958,2]
[361002345,1747193443618,-413.11,0.00010958,2]
[361002346,1747193443628,-400.0,0.00010958,2]
[361002347,1747193443638,-400.0,0.00010958,2]
[361002348,1747193443647,-400.0,0.00010958,2]
[361002349,1747193443656,-483.03,0.00010958,2]
[361002350,1747193443666,-400.0,0.00010958,2]
[361002351,1747193443675,-400.0,0.00010958,2]
[361002352,1747193443685,-186.96634042,0.00010958,2]
[361002353,1747193443695,-400.0,0.00010958,2]
[361002354,1747193443706,-676.33,0.00010958,2]
[361002355,1747193443717,-1370.47,0.00010958,2]
[361002356,1747193443727,-400.0,0.00010958,2]
[361002357,1747193443736,-510.84544522,0.00010958,2]
[361002358,1747193443746,-400.20063883,0.00010958,2]
[361002359,1747193443756,-774.01,0.00010958,2]
[361002360,1747193443765,-400.0,0.00010958,2]
[361002361,1747193443774,-404.09,0.00010958,2]
[361002362,1747193443785,-400.0,0.00010958,2]
[361002363,1747193443795,-400.0,0.00010958,2]
[361002364,1747193443804,-400.0,0.00010958,2]
[361002365,1747193443813,-1102.972186,0.00010958,2]
[361002366,1747193443822,-400.0,0.00010958,2]
[361002367,1747193443832,-1355.69,0.00010958,2]
[361002368,1747193443841,-165.628926,0.00010958,2]
[361002369,1747193443851,-1096.48,0.00010958,2]
[361002370,1747193443860,-1677.55,0.00010958,2]
[361002371,1747193443869,-400.0,0.00010958,2]
[361002372,1747193443879,-811.94,0.00010958,2]
[361002373,1747193443888,-1332.13,0.00010958,2]
[361002374,1747193443898,-400.0,0.00010958,2]
[361002375,1747193443907,-388.58527591,0.00010958,2]
[361002376,1747193443917,-401.62024334,0.00010958,2]
[361002377,1747193443927,-755.19,0.00010958,2]
[361002378,1747193443936,-400.42207642,0.00010958,2]
[361002379,1747193443946,-3146.02,0.00010958,2]
[361002380,1747193443955,-401.32068054,0.00010958,2]
[361002381,1747193443964,-400.20048469,0.00010958,2]
[361002382,1747193443974,-734.71,0.00010958,2]
[361002383,1747193443983,-400.38347964,0.00010958,2]
[361002384,1747193443992,-349.19406603,0.00010958,2]
[361002385,1747193444002,-400.0,0.00010958,2]
[361002386,1747193444011,-524.17,0.00010958,2]
[361002387,1747193444021,-417.37,0.00010958,2]
[361002388,1747193444031,-401.1121112,0.00010958,2]
[361002389,1747193444040,-784.63,0.00010958,2]
[361002390,1747193444051,-400.0,0.00010958,2]
[361002391,1747193444061,-400.0,0.00010958,2]
[361002392,1747193444071,-1514.26,0.00010958,2]
[361002393,1747193444081,-400.0,0.00010958,2]
[361002394,1747193444091,-507.32,0.00010958,2]
[361002395,1747193444101,-400.1919164,0.00010958,2]
[361002396,1747193444111,-590.5,0.00010958,2]
[361002397,1747193444122,-400.0,0.00010958,2]
[361002398,1747193444132,-1271.46,0.00010958,2]
[361002399,1747193444142,-929.64,0.00010958,2]
[361002400,1747193444151,-400.0,0.00010958,2]
[361002401,1747193444161,-651.28,0.00010958,2]
[361002402,1747193444170,-400.0,0.00010958,2]
[361002403,1747193444180,-527.11854788,0.00010958,2]
[361002404,1747193444196,-448.03486376,0.00010958,2]
[361002405,1747193445618,-897.40698998,0.00010958,2]
[361002406,1747193445875,-879.0,0.00010924,2]
[361002407,1747193445885,-1007.06959838,0.00010958,2]
[361002408,1747193445894,-400.0,0.00010958,2]
[361002409,1747193445904,-400.0,0.00010958,2]
[361002410,1747193445913,-400.0,0.00010958,2]
[361002411,1747193445922,-400.0,0.00010958,2]
[361002412,1747193445932,-564.84,0.00010958,2]
[361002413,1747193445941,-570.44,0.00010958,2]
[361002414,1747193445951,-611.91,0.00010958,2]
[361002415,1747193445961,-1360.51,0.00010958,2]
[361002416,1747193445971,-827.3,0.00010958,2]
[361002417,1747193445979,-400.0,0.00010958,2]
[361002418,1747193445989,-96.57359558,0.00010958,2]
[361002419,1747193446001,-676.30640442,0.00010958,2]
[361002420,1747193446010,-400.0,0.00010958,2]
[361002421,1747193446020,-520.73,0.00010958,2]
[361002422,1747193446029,-400.0,0.00010958,2]
[361002423,1747193446039,-400.0,0.00010958,2]
[361002424,1747193446048,-987.78,0.00010958,2]
[361002425,1747193446057,-641.59,0.00010958,2]
[361002426,1747193446067,-400.0,0.00010958,2]
[361002427,1747193446076,-400.0,0.00010958,2]
[361002428,1747193446086,-581.98,0.00010958,2]
[361002429,1747193446095,-1153.14857791,0.00010958,2]
[361002430,1747193446107,-191.22142209,0.00010958,2]
[361002431,1747193446116,-743.37516473,0.00010958,2]
[361002432,1747193446128,-538.78483527,0.00010958,2]
[361002433,1747193446138,-436.51,0.00010958,2]
[361002434,1747193446147,-1725.04,0.00010958,2]
[361002435,1747193446157,-1245.64,0.00010958,2]
[361002436,1747193446166,-400.0,0.00010958,2]
[361002437,1747193446176,-542.8,0.00010958,2]
[361002438,1747193446186,-400.0,0.00010958,2]
[361002439,1747193446195,-1071.73,0.00010958,2]
[361002440,1747193446205,-905.67,0.00010958,2]
[361002441,1747193446215,-533.39,0.00010958,2]
[361002442,1747193446224,-767.03,0.00010958,2]
[361002443,1747193446234,-400.0,0.00010958,2]
[361002444,1747193446244,-1046.03,0.00010958,2]
[361002445,1747193446255,-1006.62,0.00010958,2]
[361002446,1747193446265,-1160.89,0.00010958,2]
[361002447,1747193446276,-1909.52,0.00010958,2]
[361002448,1747193446286,-548.05,0.00010958,2]
[361002450,1747193446296,-1722.96,0.00010958,2]
[361002452,1747193446306,-895.67,0.00010958,2]
[361002454,1747193446316,-400.0,0.00010958,2]
[361002456,1747193446327,-4024.79,0.00010958,2]
[361002458,1747193446337,-1247.43,0.00010958,2]
[361002460,1747193446346,-1724.82,0.00010958,2]
[361002462,1747193446356,-770.77,0.00010958,2]
[361002464,1747193446366,-587.45,0.00010958,2]
[361002466,1747193446376,-500.08,0.00010958,2]
[361002468,1747193446386,-400.0,0.00010958,2]
[361002470,1747193446399,-1068.94,0.00010958,2]
[361002473,1747193446408,-681.2,0.00010958,2]
[361002475,1747193446418,-1100.72,0.00010958,2]
[361002477,1747193446428,-763.59,0.00010958,2]
[361002479,1747193446437,-1484.96,0.00010958,2]
[361002480,1747193446447,-1455.36,0.00010958,2]
[361002481,1747193446457,-554.55,0.00010958,2]
[361002482,1747193446466,-236.37033149,0.00010958,2]
[361002483,1747193446475,-439.18,0.00010958,2]
[361002484,1747193446485,-405.69,0.00010958,2]
[361002485,1747193446494,-1563.2,0.00010958,2]
[361002486,1747193446504,-400.0,0.00010958,2]
[361002487,1747193446513,-416.33,0.00010958,2]
[361002488,1747193446523,-666.91,0.00010958,2]
[361002489,1747193446533,-551.85,0.00010958,2]
[361002490,1747193446542,-400.0,0.00010958,2]
[361002491,1747193446551,-306.16319847,0.00010958,2]
[361002492,1747193446561,-1505.2,0.00010958,2]
[361002493,1747193446570,-771.58,0.00010958,2]
[361002494,1747193446580,-400.0,0.00010958,2]
[361002495,1747193446590,-400.0,0.00010958,2]
[361002496,1747193446599,-419.5,0.00010958,2]
[361002497,1747193446608,-1528.82,0.00010958,2]
[361002498,1747193446618,-1022.97,0.00010958,2]
[361002499,1747193446627,-1308.84,0.00010958,2]
[361002500,1747193446638,-3981.46,0.00010958,2]
[361002501,1747193446648,-728.82,0.00010958,2]
[361002502,1747193446657,-665.94,0.00010958,2]
[361002503,1747193446667,-551.66,0.00010958,2]
[361002504,1747193446677,-400.0,0.00010958,2]
[361002505,1747193446686,-400.0,0.00010958,2]
[361002506,1747193446696,-400.0,0.00010958,2]
[361002507,1747193446705,-400.0,0.00010958,2]
[361002508,1747193446717,-495.03,0.00010958,2]
[361002509,1747193446727,-2108.77,0.00010958,2]
[361002510,1747193446736,-400.0,0.00010958,2]
[361002511,1747193446745,-1652.88,0.00010958,2]
[361002512,1747193446756,-601.94,0.00010958,2]
[361002513,1747193446765,-857.77,0.00010958,2]
[361002514,1747193446775,-400.0,0.00010958,2]
[361002515,1747193446785,-400.0,0.00010958,2]
[361002516,1747193446794,-1280.77,0.00010958,2]
[361002517,1747193446804,-3373.09,0.00010958,2]
[361002518,1747193446813,-1270.84,0.00010958,2]
[361002519,1747193446822,-1102.6,0.00010958,2]
[361002520,1747193446831,-400.0,0.00010958,2]
[361002521,1747193446840,-400.0,0.00010958,2]
[361002522,1747193446850,-603.34,0.00010958,2]
[361002523,1747193446859,-726.79,0.00010958,2]
[361002524,1747193446868,-655.14,0.00010958,2]
[361002525,1747193446878,-670.99,0.00010958,2]
[361002526,1747193446887,-400.0,0.00010958,2]
[361002527,1747193446896,-541.52,0.00010958,2]
[361002528,1747193446906,-400.0,0.00010958,2]
[361002529,1747193446915,-400.0,0.00010958,2]
[361002530,1747193446924,-528.46,0.00010958,2]
[361002531,1747193446933,-400.0,0.00010958,2]
[361002532,1747193446942,-400.0,0.00010958,2]
[361002533,1747193446951,-940.55,0.00010958,2]
[361002534,1747193446960,-2906.72,0.00010958,2]
[361002535,1747193446969,-364.53028156,0.00010958,2]
[361002536,1747193446979,-400.0,0.00010958,2]
[361002537,1747193446989,-284.19438568,0.00010958,2]
[361002538,1747193446997,-400.0,0.00010958,2]
[361002539,1747193447006,-400.0,0.00010958,2]
[361002540,1747193447015,-400.0,0.00010958,2]
[361002541,1747193447025,-582.67,0.00010958,2]
[361002542,1747193447035,-8085.23,0.00010958,2]
[361002543,1747193447044,-640.77,0.00010958,2]
[361002544,1747193447054,-400.0,0.00010958,2]
[361002545,1747193447063,-886.59,0.00010958,2]
[361002546,1747193447073,-400.0,0.00010958,2]
[361002547,1747193447082,-409.37,0.00010958,2]
[361002548,1747193447091,-400.0,0.00010958,2]
[361002549,1747193447101,-900.45,0.00010958,2]
[361002550,1747193447110,-452.06,0.00010958,2]
[361002551,1747193447120,-785.29,0.00010958,2]
[361002552,1747193447129,-400.0,0.00010958,2]
[361002553,1747193447138,-400.0,0.00010958,2]
[361002554,1747193447147,-680.9,0.00010958,2]
[361002555,1747193447157,-400.0,0.00010958,2]
[361002556,1747193447166,-400.0,0.00010958,2]
[361002557,1747193447175,-5622.33873508,0.00010958,2]
[361002558,1747193447188,-1116.14335463,0.00010958,2]
[361002559,1747193447199,-1865.62791029,0.00010958,2]
[361002560,1747193447208,-400.0,0.00010958,2]
[361002561,1747193447217,-870.49,0.00010958,2]
[361002562,1747193447227,-2175.64,0.00010958,2]
[361002563,1747193447236,-21.2078712,0.00010958,2]
[361002564,1747193447247,-604.0421288,0.00010958,2]
[361002565,1747193447256,-84.04312938,0.00010958,2]
[361002566,1747193447268,-315.95687062,0.00010958,2]
[361002567,1747193447277,-554.85,0.00010958,2]
[361002568,1747193447288,-689.77,0.00010958,2]
[361002569,1747193447300,-312.57199938,0.00010958,2]
[361002570,1747193447333,-619.76020313,0.00010958,2]
[361002571,1747193447348,-2397.10568078,0.00010958,2]
[361002572,1747193447377,-994.53211671,0.00010958,2]
[361002573,1747193447388,-400.0,0.00010958,2]
[361002574,1747193447398,-410.88,0.00010958,2]
[361002575,1747193447407,-380.75195089,0.00010958,2]
[361002576,1747193447417,-1688.44,0.00010958,2]
[361002577,1747193447427,-427.44,0.00010958,2]
[361002578,1747193447436,-412.46,0.00010958,2]
[361002579,1747193447445,-400.0,0.00010958,2]
[361002580,1747193447454,-400.0,0.00010958,2]
[361002581,1747193447464,-400.0,0.00010958,2]
[361002582,1747193447473,-400.0,0.00010958,2]
[361002583,1747193447483,-767.97,0.00010958,2]
[361002584,1747193447492,-1000.0,0.00010958,2]
[361002585,1747193447501,-530.19,0.00010958,2]
[361002586,1747193447510,-4252.09,0.00010958,2]
[361002587,1747193447519,-1204.82,0.00010958,2]
[361002588,1747193447528,-1520.03,0.00010958,2]
[361002589,1747193447537,-400.0,0.00010958,2]
[361002590,1747193447546,-400.0,0.00010958,2]
[361002591,1747193447555,-609.14,0.00010958,2]
[361002592,1747193447564,-400.0,0.00010958,2]
[361002593,1747193447573,-400.0,0.00010958,2]
[361002594,1747193447582,-1069.98,0.00010958,2]
[361002595,1747193447591,-400.0,0.00010958,2]
[361002596,1747193447600,-400.0,0.00010958,2]
[361002597,1747193447610,-5312.7,0.00010958,2]
[361002598,1747193447620,-400.0,0.00010958,2]
[361002599,1747193447632,-400.0,0.00010958,2]
[361002600,1747193447641,-400.0,0.00010958,2]
[361002601,1747193447650,-1266.93,0.00010958,2]
[361002602,1747193447659,-456.18,0.00010958,2]
[361002603,1747193447668,-832.84,0.00010958,2]
[361002604,1747193447677,-400.0,0.00010958,2]
[361002605,1747193447686,-400.0,0.00010958,2]
[361002606,1747193447696,-731.98,0.00010958,2]
[361002607,1747193447706,-400.0,0.00010958,2]
[361002608,1747193447720,-951.48,0.00010958,2]
[361002609,1747193447730,-400.0,0.00010958,2]
[361002610,1747193447739,-466.88,0.00010958,2]
[361002611,1747193447749,-717.16,0.00010958,2]
[361002612,1747193447761,-767.77,0.00010958,2]
[361002613,1747193447771,-400.0,0.00010958,2]
[361002614,1747193447780,-749.35,0.00010958,2]
[361002615,1747193447791,-558.23,0.00010958,2]
[361002616,1747193447801,-611.43,0.00010958,2]
[361002617,1747193447811,-400.0,0.00010958,2]
[361002618,1747193447820,-1920.14,0.00010958,2]
[361002619,1747193447829,-400.0,0.00010958,2]
[361002620,1747193447839,-400.0,0.00010958,2]
[361002621,1747193447848,-400.0,0.00010958,2]
[361002622,1747193447857,-400.0,0.00010958,2]
[361002623,1747193447866,-400.0,0.00010958,2]
[361002624,1747193447876,-400.0,0.00010958,2]
[361002625,1747193447885,-682.83,0.00010958,2]
[361002626,1747193447896,-1487.92,0.00010958,2]
[361002627,1747193447906,-686.02,0.00010958,2]
[361002628,1747193447915,-400.0,0.00010958,2]
[361002629,1747193447925,-400.0,0.00010958,2]
[361002630,1747193447935,-1207.68,0.00010958,2]
[361002631,1747193447944,-400.0,0.00010958,2]
[361002632,1747193447953,-400.0,0.00010958,2]
[361002633,1747193447963,-400.0,0.00010958,2]
[361002634,1747193447972,-276.68718465,0.00010958,2]
[361002636,1747193491656,-161.29,0.0001012,2]
[361002637,1747193553338,-201.85402186,0.00010045,2]
[361002638,1747193591540,608.5557,0.00025,60]
[361002639,1747193610991,150.0,0.00010022,7]
[361002642,1747194276090,788.88,8.219e-05,2]
[361002660,1747194631781,-250.0,9.966e-05,2]
[361002661,1747194631798,-200.0,9.969e-05,2]
[361002662,1747194631810,-200.0,9.974e-05,2]
[361002663,1747194631821,-1000.0,9.979e-05,2]
[361002664,1747194631830,-450.0,0.0001,2]
[361002665,1747194631839,-1608.565,0.0001,2]
[361002666,1747194631848,-431.67,0.00010034,2]
[361002667,1747194631858,-502.0,0.00010329,2]
[361002668,1747194631867,-788.88,0.00010475,2]
[361002669,1747194631876,-167.08728024,0.00010858,2]
[361002670,1747194631886,-1200.0,0.00010889,2]
[361002671,1747194631896,-207.4,0.00010891,2]
[361002672,1747194631906,-300.0,0.00010897,2]
[361002673,1747194631916,-2023.40545266,0.00010898,2]
[361002674,1747194631994,-7797.47034734,0.00010898,2]
[361002675,1747194632003,-299.99,0.00010898,2]
[361002676,1747194632014,-169.84863793,0.000109,2]
[361002677,1747194632024,-395.61161956,0.000109,2]
[361002678,1747194632033,-518.11156984,0.000109,2]
[361002679,1747194632042,-150.0,0.00010929,2]
[361002680,1747194632053,-190.3500974,0.00010944,2]
[361002681,1747194632068,-164.27,0.00010948,2]